[Event "33rd Croatian Junior League 2024"]
[Site "Novalja"]
[Date "2024.04.05"]
[Round "6.6"]
[White "Karlusic, Luka"]
[Black "Domovic, Ognjen"]
[Result "1/2-1/2"]
[ECO "D80"]
[WhiteElo "2232"]
[BlackElo "1973"]
[Annotator "RC"]
[PlyCount "118"]
[EventDate "2024.03.28"]
[EventType "team-tourn"]
[EventCountry "CRO"]
[SourceTitle "playchess.com"]
[Source "ChessBase"]
[SourceQuality "1"]
[TimeControl "5400+30"]

1. d4 {[%emt 0:00:03]} Nf6 {[%emt 0:01:18]} 2. c4 {[%emt 0:00:14]} g6 {[%emt 0:00:29]} 3. Nc3 {[%emt 0:00:33]} d5 {[%emt 0:00:09]} 4. Bg5 {[%emt 0:00:13]} Ne4 {[%emt 0:00:17]} 5. Bh4 {[%emt 0:00:22]} Nxc3 {[%emt 0:00:40]} 6. bxc3 {[%emt 0:00:05]} Bg7 {[%emt 0:00:24]} 7. e3 {[%emt 0:00:20]} dxc4 {[%emt 0:00:23]} 8. Bxc4 {[%emt 0:01:11]} c5 {[%emt 0:00:26]} 9. Nf3 {[%emt 0:02:00]} O-O {[%emt 0:00:40]} 10. O-O {[%emt 0:00:59]} Nc6 {[%emt 0:02:16]} 11. Rb1 {[%emt 0:09:02]} cxd4 {[%emt 0:32:09]} 12. cxd4 {[%emt 0:01:25]} b6 13. Qe2 {[%emt 0:06:07]} Na5 {[%emt 0:04:31]} 14. Bb5 {[%emt 0:08:35]} Bb7 {[%emt 0:03:20]} 15. Rbc1 {[%emt 0:02:00]} h6 {[%emt 0:02:09]} 16. Ba6 {[%emt 0:07:00]} Qd7 {[%emt 0:07:13]} 17. Rc3 {[%emt 0:04:10]} Rfc8 {[%emt 0:02:42]} 18. Bxb7 {[%emt 0:02:37]} Nxb7 {[%emt 0:07:37]} 19. Rfc1 {[%emt 0:01:33]} Rxc3 {[%emt 0:00:37]} 20. Rxc3 {[%emt 0:00:03]} Nd6 {[%emt 0:00:41]} 21. Qc2 {[%emt 0:05:37]} Rc8 {[%emt 0:02:49]} 22. Rxc8+ {[%emt 0:00:32]} Qxc8 {[%emt 0:00:21]} 23. Qxc8+ {[%emt 0:00:13]} Nxc8 {[%emt 0:00:11]} 24. Kf1 {[%emt 0:00:58]} Kf8 {[%emt 0:00:16]} 25. Bg3 {[%emt 0:01:29]} Ke8 {[%emt 0:00:24]} 26. Ke2 {[%emt 0:01:04]} Kd7 {[%emt 0:08:48]} 27. Kd3 {[%emt 0:01:50]} Kc6 {[%emt 0:02:42]} 28. Be5 {[%emt 0:04:16]} f6 {[%emt 0:02:15]} 29. Bg3 {[%emt 0:00:36]} h5 {[%emt 0:02:42]} 30. Nd2 {[%emt 0:05:38]} Nd6 {[%emt 0:01:34]} 31. Bxd6 {[%emt 0:01:00]} exd6 {[%emt 0:00:33]} 32. e4 {[%emt 0:01:32]} f5 {[%emt 0:04:25]} 33. f3 {[%emt 0:01:52]} fxe4+ {[%emt 0:00:18]} 34. fxe4 {[%emt 0:00:09]} b5 {[%emt 0:00:40]} 35. Nf3 {[%emt 0:02:21]} Bf6 {[%emt 0:00:40]} 36. h3 {[%emt 0:04:29]} a5 {[%emt 0:00:07]} 37. g4 {[%emt 0:02:05]} hxg4 {[%emt 0:02:11]} 38. hxg4 {[%emt 0:00:01]} Be7 {[%emt 0:01:49]} 39. Ne1 {[%emt 0:01:29]} Bf6 {[%emt 0:01:52]} 40. Nc2 {[%emt 0:00:27]} Bg5 {[%emt 0:00:38]} 41. Kc3 {[%emt 0:03:49]} Bc1 {[%emt 0:00:46]} 42. Ne1 {[%emt 0:02:32]} Bg5 {[%emt 0:00:28]} 43. Nf3 {[%emt 0:01:16]} Be7 {[%emt 0:00:21]} 44. Kb3 {[%emt 0:02:52]} Bd8 {[%emt 0:01:00]} 45. a4 {[%emt 0:00:49]} Be7 {[%emt 0:00:38]} 46. Ng1 {[%emt 0:00:53]} Bg5 {[%emt 0:00:47]} 47. Nf3 {[%emt 0:01:51]} Be7 {[%emt 0:00:07]} 48. Ne1 {[%emt 0:04:07]} Bh4 {[%emt 0:00:31]} 49. Nc2 {[%emt 0:02:20]} Bf6 {[%emt 0:00:08]} 50. axb5+ {[%emt 0:01:54]} Kxb5 {[%emt 0:00:16]} 51. Na3+ {[%emt 0:00:05]} Kc6 {[%emt 0:00:36]} 52. Kc4 {[%emt 0:00:52]} Bg5 {[%emt 0:07:36]} 53. Nb1 {[%emt 0:00:39]} Be3 {[%emt 0:00:00]} 54. Nc3 {[%emt 0:00:08]} Bg5 {[%emt 0:00:00]} 55. Na4 {[%emt 0:00:18]} Bd2 {[%emt 0:00:00]} 56. d5+ {[%emt 0:02:48]} Kd7 {[%emt 0:00:00]} 57. Kd4 {[%emt 0:01:20]} Ke7 {[%emt 0:00:00]} 58. e5 {[%emt 0:00:33]} dxe5+ {[%emt 0:00:00]} 59. Kxe5 {[%emt 0:00:02]} Bb4 {[%emt 0:00:00]} 1/2-1/2

[Event "33rd Croatian Junior League 2024"]
[Site "Novalja"]
[Date "2024.04.05"]
[Round "6.7"]
[White "Martic, Ivan"]
[Black "Mazuran, Gabrijel"]
[Result "1/2-1/2"]
[ECO "D02"]
[WhiteElo "2300"]
[BlackElo "2054"]
[Annotator "RC"]
[PlyCount "79"]
[EventDate "2024.03.28"]
[EventType "team-tourn"]
[EventCountry "CRO"]
[SourceTitle "playchess.com"]
[Source "ChessBase"]
[SourceQuality "1"]
[TimeControl "5400+30"]

1. d4 {[%emt 0:01:23]} Nf6 {[%emt 0:00:06]} 2. Bf4 {[%emt 0:00:03]} e6 {[%emt 0:00:13]} 3. e3 {[%emt 0:00:12]} b6 {[%emt 0:00:52]} 4. c3 {[%emt 0:00:49]} Bb7 {[%emt 0:00:33]} 5. Nd2 {[%emt 0:00:29]} Be7 {[%emt 0:01:13]} 6. h3 {[%emt 0:02:06]} O-O {[%emt 0:05:43]} 7. Ngf3 {[%emt 0:00:13]} d5 {[%emt 0:14:57]} 8. Bd3 {[%emt 0:03:15]} c5 {[%emt 0:01:48]} 9. O-O {[%emt 0:05:09]} c4 {[%emt 0:03:44]} 10. Bc2 {[%emt 0:00:31]} b5 11. Ne5 {[%emt 0:19:05]} Nbd7 {[%emt 0:05:47]} 12. Re1 {[%emt 0:05:04]} b4 {[%emt 0:09:07]} 13. Qf3 {[%emt 0:08:41]} Qc8 {[%emt 0:16:22]} 14. Rab1 {[%emt 0:12:08]} a5 {[%emt 0:14:28]} 15. Red1 {[%emt 0:19:43]} a4 {[%emt 0:02:28]} 16. cxb4 {[%emt 0:06:55]} Bxb4 {[%emt 0:00:02]} 17. a3 {[%emt 0:01:21]} Be7 {[%emt 0:00:29]} 18. e4 {[%emt 0:02:18]} Nxe5 {[%emt 0:05:22]} 19. Bxe5 {[%emt 0:01:36]} Nd7 {[%emt 0:02:38]} 20. Bf4 {[%emt 0:01:06]} e5 {[%emt 0:08:46]} 21. Be3 {[%emt 0:04:12]} Bf6 {[%emt 0:05:41]} 22. Nf1 {[%emt 0:00:22]} exd4 {[%emt 0:00:30]} 23. Bxd4 {[%emt 0:00:01]} Bxd4 {[%emt 0:00:20]} 24. Rxd4 {[%emt 0:00:01]} Qc5 {[%emt 0:00:43]} 25. Qc3 {[%emt 0:00:17]} Nb6 {[%emt 0:00:34]} 26. Ne3 {[%emt 0:00:23]} Rac8 {[%emt 0:00:29]} 27. Rbd1 {[%emt 0:00:45]} dxe4 {[%emt 0:00:30]} 28. Bxe4 {[%emt 0:00:27]} Bxe4 {[%emt 0:00:09]} 29. Rxe4 {[%emt 0:00:01]} Qb5 {[%emt 0:00:52]} 30. Rdd4 {[%emt 0:02:43]} Rc5 {[%emt 0:00:25]} 31. Rd2 {[%emt 0:03:59]} Qb3 {[%emt 0:00:33]} 32. Rc2 {[%emt 0:01:12]} Rfc8 {[%emt 0:00:32]} 33. Rd4 {[%emt 0:00:00]} g6 {[%emt 0:00:24]} 34. Rdd2 {[%emt 0:00:08]} h5 {[%emt 0:00:35]} 35. Rd4 {[%emt 0:00:11]} Qb5 {[%emt 0:00:31]} 36. Rcd2 {[%emt 0:00:26]} Re5 {[%emt 0:00:31]} 37. Rd1 {[%emt 0:00:40]} Ree8 {[%emt 0:00:30]} 38. R1d2 {[%emt 0:00:29]} Qb3 {[%emt 0:00:31]} 39. Rc2 {[%emt 0:00:04]} Qb5 {[%emt 0:00:30]} 40. Rcd2 {[%emt 0:02:02]} 1/2-1/2

[Event "33rd Croatian Junior League 2024"]
[Site "Novalja"]
[Date "2024.04.05"]
[Round "6.8"]
[White "Simunkovic, Bartol"]
[Black "Dimac, Petar"]
[Result "1-0"]
[ECO "B86"]
[WhiteElo "1885"]
[BlackElo "1623"]
[Annotator "NA RC"]
[PlyCount "77"]
[EventDate "2024.03.28"]
[EventType "team-tourn"]
[EventCountry "CRO"]
[SourceTitle "playchess.com"]
[Source "ChessBase"]
[SourceQuality "1"]
[TimeControl "5400+30"]

1. e4 {[%emt 0:00:08]} c5 {[%emt 0:01:17]} 2. Nf3 {[%emt 0:00:08]} d6 {[%emt 0:00:05]} 3. d4 {[%emt 0:00:06]} cxd4 {[%emt 0:00:05]} 4. Nxd4 {[%emt 0:00:04]} Nf6 {[%emt 0:00:11]} 5. Nc3 {[%emt 0:00:05]} a6 {[%emt 0:00:09]} 6. Bc4 {[%emt 0:00:39]} e6 {[%emt 0:00:21]} 7. a3 {[%emt 0:01:41]} Be7 {[%emt 0:01:07]} 8. O-O {[%emt 0:00:10]} O-O {[%emt 0:00:30]} 9. f4 {[%emt 0:00:53] B86: Sicilian Scheveningen/Najdorf: 6 Bc4, without early ...b5.} b5 {[%emt 0:02:38]} 10. Ba2 {[%emt 0:00:31]} Qc7 {[%emt 0:00:48]} 11. f5 {[%emt 0:01:27]} e5 {[%emt 0:01:47]} 12. Nde2 {[%emt 0:00:38]} (12. Nd5 $5 Nxd5 13. Bxd5 $11) 12... Bb7 {[%emt 0:01:24]} 13. Ng3 {[%emt 0:01:02]} Nbd7 {[%emt 0:00:43]} 14. Bg5 {[%emt 0:01:25]} Rac8 {[%emt 0:02:21]} 15. Bxf6 {[%emt 0:01:28]} Nxf6 {[%emt 0:00:30]} 16. Nh5 {[%emt 0:00:14]} Nxh5 {[%emt 0:08:17]} (16... Bxe4 $2 {too greedy.} 17. Nxf6+ Bxf6 18. Nxe4 $18) (16... Nxe4 $2 {loses.} 17. Nxe4 Bxe4 18. Qg4 $18) 17. Qxh5 {[%emt 0:00:08]} Qc5+ {[%emt 0:05:06]} 18. Kh1 {[%emt 0:00:11]} Qe3 {[%emt 0:02:37]} 19. Rad1 {[%emt 0:05:44]} Rcd8 {[%emt 0:05:19]} 20. Bd5 {[%emt 0:04:12]} Bxd5 {[%emt 0:05:12]} 21. Nxd5 {[%emt 0:00:08]} Qg5 {[%emt 0:00:18]} 22. Qe2 {[%emt 0:19:37]} Rfe8 {[%emt 0:13:27]} 23. Nc7 {[%emt 0:02:33]} Ra8 {[%emt 0:10:24]} 24. c4 {[%emt 0:04:17]} bxc4 {[%emt 0:01:31]} 25. Nxe8 {[%emt 0:00:27]} Rxe8 {[%emt 0:00:24]} 26. Qxc4 {[%emt 0:00:05]} Rb8 {[%emt 0:00:35]} 27. b4 {[%emt 0:01:30]} a5 {[%emt 0:01:07]} (27... Qe3 {is a better defense.} 28. Qxa6 Qxe4) 28. b5 {[%emt 0:00:19]} Bf8 {[%emt 0:00:19]} 29. a4 {[%emt 0:01:00]} Qd8 {[%emt 0:00:53]} 30. Rc1 {[%emt 0:00:09]} Qb6 {[%emt 0:01:53]} 31. Qc7 {[%emt 0:00:12]} Qxc7 {[%emt 0:00:57]} 32. Rxc7 {[%emt 0:00:02]} g6 {[%emt 0:00:27]} 33. fxg6 {[%emt 0:00:59]} fxg6 {[%emt 0:00:26]} 34. Rb1 {[%emt 0:00:24]} Rb6 {[%emt 0:00:38]} 35. Rc6 $18 {[%emt 0:00:08]} Rb7 {[%emt 0:00:03]} 36. b6 {[%emt 0:00:19]} Bh6 {[%emt 0:00:09]} 37. Rc8+ {[%emt 0:00:12]} Bf8 {[%emt 0:00:17]} 38. Rc7 {[%emt 0:00:05]} Rb8 {[%emt 0:00:15]} 39. b7 {[%emt 0:00:06]} 1-0

[Event "33rd Croatian Junior League 2024"]
[Site "Novalja"]
[Date "2024.04.05"]
[Round "6.9"]
[White "Kovac, Petar"]
[Black "Sundac, Ivano"]
[Result "1/2-1/2"]
[ECO "D35"]
[WhiteElo "2173"]
[BlackElo "2066"]
[Annotator "RC"]
[PlyCount "37"]
[EventDate "2024.03.28"]
[EventType "team-tourn"]
[EventCountry "CRO"]
[SourceTitle "playchess.com"]
[Source "ChessBase"]
[SourceQuality "1"]
[TimeControl "5400+30"]

1. d4 {[%emt 0:00:02]} d5 {[%emt 0:00:03]} 2. c4 {[%emt 0:00:05]} e6 {[%emt 0:00:03]} 3. Nc3 {[%emt 0:00:18]} Nf6 {[%emt 0:00:05]} 4. cxd5 {[%emt 0:00:05]} exd5 {[%emt 0:00:03]} 5. Bg5 {[%emt 0:00:07]} c6 {[%emt 0:00:02]} 6. e3 {[%emt 0:00:08]} Bd6 {[%emt 0:00:09]} 7. Bd3 {[%emt 0:01:24]} O-O {[%emt 0:00:33]} 8. Qc2 {[%emt 0:01:04]} h6 {[%emt 0:00:04]} 9. Bh4 {[%emt 0:00:04]} Re8 {[%emt 0:00:09]} 10. Nf3 {[%emt 0:02:00]} a5 {[%emt 0:01:16]} 11. O-O {[%emt 0:02:15]} Na6 {[%emt 0:01:03]} 12. a3 {[%emt 0:00:15]} Bg4 {[%emt 0:01:28]} 13. Bf5 {[%emt 0:07:45]} Bxf5 {[%emt 0:03:53]} 14. Qxf5 {[%emt 0:00:12]} Qd7 {[%emt 0:00:17]} 15. Qxd7 {[%emt 0:06:09]} Nxd7 {[%emt 0:00:20]} 16. Rfc1 {[%emt 0:06:41]} Nc7 {[%emt 0:05:47]} 17. Bg3 {[%emt 0:06:01]} Bxg3 18. hxg3 {[%emt 0:00:04]} Nb6 {[%emt 0:08:08]} 19. a4 {[%emt 0:18:48]} 1/2-1/2

[Event "33rd Croatian Junior League 2024"]
[Site "Novalja"]
[Date "2024.04.05"]
[Round "6.10"]
[White "Tomljanovic, Ivano"]
[Black "Konjevic, Nikola"]
[Result "1/2-1/2"]
[ECO "E54"]
[WhiteElo "2013"]
[BlackElo "2056"]
[Annotator "RC"]
[PlyCount "43"]
[EventDate "2024.03.28"]
[EventType "team-tourn"]
[EventCountry "CRO"]
[SourceTitle "playchess.com"]
[Source "ChessBase"]
[SourceQuality "1"]
[TimeControl "5400+30"]

1. d4 {[%emt 0:00:12]} Nf6 {[%emt 0:00:05]} 2. c4 {[%emt 0:00:07]} e6 {[%emt 0:00:08]} 3. Nf3 {[%emt 0:02:22]} d5 {[%emt 0:00:09]} 4. Nc3 {[%emt 0:01:12]} Bb4 {[%emt 0:00:08]} 5. a3 {[%emt 0:09:28]} Bxc3+ {[%emt 0:00:59]} 6. bxc3 {[%emt 0:00:04]} c5 {[%emt 0:03:58]} 7. e3 {[%emt 0:04:40]} O-O {[%emt 0:03:15]} 8. Bd3 {[%emt 0:02:55]} dxc4 {[%emt 0:02:03]} 9. Bxc4 {[%emt 0:00:07]} Qc7 {[%emt 0:00:05]} 10. Be2 {[%emt 0:03:03]} b6 {[%emt 0:01:56]} 11. O-O {[%emt 0:00:35]} Ba6 {[%emt 0:15:12]} 12. Bxa6 Nxa6 {[%emt 0:00:02]} 13. Ne5 {[%emt 0:02:03]} Nd7 {[%emt 0:11:35]} 14. Nd3 {[%emt 0:04:03]} Rfd8 {[%emt 0:08:30]} 15. Qe2 {[%emt 0:03:23]} Rac8 {[%emt 0:02:49]} 16. Bd2 {[%emt 0:02:22]} Nab8 {[%emt 0:05:08]} 17. Rfd1 {[%emt 0:01:57]} Nc6 {[%emt 0:03:59]} 18. Be1 {[%emt 0:02:57]} Na5 {[%emt 0:03:18]} 19. a4 {[%emt 0:09:43]} h6 {[%emt 0:01:50]} 20. f3 {[%emt 0:05:04]} Qc6 {[%emt 0:02:24]} 21. Bh4 {[%emt 0:00:23]} Re8 {[%emt 0:00:39]} 22. Bg3 {[%emt 0:00:42]} 1/2-1/2

[Event "33rd Croatian Junior League 2024"]
[Site "Novalja"]
[Date "2024.04.05"]
[Round "6.11"]
[White "Car, Filip"]
[Black "Ivancic, Ivan"]
[Result "1/2-1/2"]
[ECO "E04"]
[WhiteElo "2106"]
[BlackElo "1995"]
[Annotator "RC"]
[PlyCount "23"]
[EventDate "2024.03.28"]
[EventType "team-tourn"]
[EventCountry "CRO"]
[SourceTitle "playchess.com"]
[Source "ChessBase"]
[SourceQuality "1"]
[TimeControl "5400+30"]

1. d4 {[%emt 0:00:04]} d5 {[%emt 0:00:18]} 2. c4 {[%emt 0:00:06]} e6 {[%emt 0:00:08]} 3. Nf3 {[%emt 0:00:22]} Nf6 {[%emt 0:00:21]} 4. g3 {[%emt 0:00:23]} dxc4 {[%emt 0:00:29]} 5. Bg2 {[%emt 0:00:09]} Nbd7 {[%emt 0:01:32]} 6. O-O {[%emt 0:12:52]} c6 {[%emt 0:01:41]} 7. a4 {[%emt 0:04:27]} a5 {[%emt 0:02:29]} 8. Nc3 {[%emt 0:13:52]} Nd5 {[%emt 0:08:08]} 9. e4 {[%emt 0:08:14]} Nb4 {[%emt 0:02:05]} 10. Bg5 {[%emt 0:09:56]} Be7 {[%emt 0:03:26]} 11. Bxe7 {[%emt 0:00:16]} Qxe7 {[%emt 0:00:08]} 12. Nd2 {[%emt 0:10:52]} 1/2-1/2

[Event "33rd Croatian Junior League 2024"]
[Site "Novalja"]
[Date "2024.04.05"]
[Round "6.12"]
[White "Hajdinic, Ema"]
[Black "Mandaric, Fran"]
[Result "1/2-1/2"]
[ECO "B23"]
[WhiteElo "1884"]
[BlackElo "1933"]
[Annotator "RC"]
[PlyCount "33"]
[EventDate "2024.03.28"]
[EventType "team-tourn"]
[EventCountry "CRO"]
[SourceTitle "playchess.com"]
[Source "ChessBase"]
[SourceQuality "1"]
[TimeControl "5400+30"]

1. e4 {[%emt 0:00:14]} c5 {[%emt 0:00:07]} 2. Nc3 {[%emt 0:00:15]} Nc6 {[%emt 0:00:15]} 3. Bb5 {[%emt 0:00:12]} g6 {[%emt 0:02:06]} 4. Bxc6 {[%emt 0:00:44]} bxc6 {[%emt 0:00:38]} 5. f4 {[%emt 0:00:16]} Bg7 {[%emt 0:00:35]} 6. d3 {[%emt 0:00:44]} Nf6 {[%emt 0:01:46]} 7. Nge2 {[%emt 0:11:22]} O-O {[%emt 0:02:04]} 8. O-O {[%emt 0:00:09]} d6 {[%emt 0:01:06]} 9. h3 {[%emt 0:02:40]} Ne8 {[%emt 0:09:05]} 10. f5 {[%emt 0:05:38]} e6 {[%emt 0:06:48]} 11. fxg6 hxg6 {[%emt 0:00:29]} 12. Qe1 {[%emt 0:08:26]} e5 {[%emt 0:04:27]} 13. Qg3 {[%emt 0:01:48]} Nf6 {[%emt 0:08:34]} 14. Qh2 {[%emt 0:20:11]} Nh7 {[%emt 0:03:20]} 15. g4 {[%emt 0:06:17]} f5 {[%emt 0:00:21]} 16. gxf5 {[%emt 0:01:13]} gxf5 {[%emt 0:00:25]} 17. exf5 {[%emt 0:00:08]} 1/2-1/2

[Event "33rd Croatian Junior League 2024"]
[Site "Novalja"]
[Date "2024.04.06"]
[Round "7.1"]
[White "Kovac, Petar"]
[Black "Gal, Andrej"]
[Result "1/2-1/2"]
[ECO "E42"]
[WhiteElo "2173"]
[BlackElo "2274"]
[Annotator "RC"]
[PlyCount "55"]
[EventDate "2024.03.28"]
[EventType "team-tourn"]
[EventCountry "CRO"]
[SourceTitle "playchess.com"]
[Source "ChessBase"]
[SourceQuality "1"]
[TimeControl "5400+30"]

1. d4 {[%emt 0:00:02]} Nf6 {[%emt 0:00:04]} 2. c4 {[%emt 0:00:04]} e6 {[%emt 0:00:03]} 3. Nc3 {[%emt 0:00:09]} Bb4 {[%emt 0:00:21]} 4. e3 {[%emt 0:00:07]} c5 {[%emt 0:01:49]} 5. Nge2 {[%emt 0:00:20]} b6 {[%emt 0:06:27]} 6. a3 {[%emt 0:01:19]} Ba5 {[%emt 0:00:04]} 7. Rb1 {[%emt 0:01:03]} Na6 {[%emt 0:00:20]} 8. f3 {[%emt 0:00:55]} Bb7 {[%emt 0:08:25]} 9. Kf2 {[%emt 0:06:15]} Qe7 {[%emt 0:11:24]} 10. d5 {[%emt 0:17:43]} Bxc3 {[%emt 0:06:21]} 11. Nxc3 {[%emt 0:04:15]} d6 {[%emt 0:00:44]} 12. e4 {[%emt 0:09:56]} O-O {[%emt 0:04:18]} 13. Bd3 {[%emt 0:06:49]} e5 {[%emt 0:00:32]} 14. g4 {[%emt 0:06:44]} Bc8 {[%emt 0:04:32]} 15. Kg2 {[%emt 0:08:04]} Nc7 {[%emt 0:02:09]} 16. Bg5 {[%emt 0:05:55]} Bd7 {[%emt 0:04:14]} 17. Qd2 {[%emt 0:06:24]} Rfe8 {[%emt 0:04:05]} 18. Ne2 {[%emt 0:04:41]} h6 {[%emt 0:09:15]} 19. Be3 {[%emt 0:01:18]} Nh7 {[%emt 0:01:22]} 20. h4 {[%emt 0:02:15]} b5 {[%emt 0:02:22]} 21. b3 {[%emt 0:05:46]} a5 {[%emt 0:06:30]} 22. Ng3 {[%emt 0:03:21]} bxc4 {[%emt 0:02:37]} 23. bxc4 {[%emt 0:04:15]} f6 {[%emt 0:01:22]} 24. Rb7 {[%emt 0:01:39]} Rec8 {[%emt 0:03:27]} 25. Rhb1 {[%emt 0:00:21]} Qd8 {[%emt 0:01:00]} 26. R1b6 {[%emt 0:01:22]} Ne8 {[%emt 0:01:12]} 27. Qb2 {[%emt 0:00:34]} Nf8 {[%emt 0:00:51]} 28. h5 {[%emt 0:01:00]} 1/2-1/2

[Event "33rd Croatian Junior League 2024"]
[Site "Novalja"]
[Date "2024.04.06"]
[Round "7.2"]
[White "Franc, Borna"]
[Black "Konjevic, Nikola"]
[Result "1-0"]
[ECO "C54"]
[WhiteElo "2221"]
[BlackElo "2056"]
[Annotator "RC"]
[PlyCount "90"]
[EventDate "2024.03.28"]
[EventType "team-tourn"]
[EventCountry "CRO"]
[SourceTitle "playchess.com"]
[Source "ChessBase"]
[SourceQuality "1"]
[TimeControl "5400+30"]

1. e4 {[%emt 0:00:03]} e5 {[%emt 0:00:01]} 2. Nf3 {[%emt 0:00:05]} Nc6 {[%emt 0:00:06]} 3. Bc4 {[%emt 0:00:07]} Bc5 {[%emt 0:00:07]} 4. c3 {[%emt 0:00:11]} Nf6 {[%emt 0:00:06]} 5. d3 {[%emt 0:00:03]} d6 {[%emt 0:00:17]} 6. Nbd2 {[%emt 0:00:05]} a6 {[%emt 0:02:04]} 7. b4 {[%emt 0:00:48]} Ba7 {[%emt 0:01:16]} 8. Nf1 {[%emt 0:00:44]} Be6 {[%emt 0:15:18]} 9. Ng3 {[%emt 0:00:38]} h6 {[%emt 0:00:58]} 10. Bb3 {[%emt 0:05:57]} O-O {[%emt 0:11:30]} 11. Be3 {[%emt 0:00:15]} Bxb3 {[%emt 0:09:38]} 12. Qxb3 {[%emt 0:00:24]} d5 {[%emt 0:00:13]} 13. Bxa7 {[%emt 0:00:46]} Rxa7 {[%emt 0:00:04]} 14. O-O {[%emt 0:00:09]} Re8 {[%emt 0:07:12]} 15. a4 {[%emt 1:27:45]} Qd7 {[%emt 0:05:54]} 16. Rfe1 {[%emt 0:00:00]} dxe4 {[%emt 0:01:24]} 17. dxe4 {[%emt 0:00:00]} Qe6 {[%emt 0:01:31]} 18. Nd2 {[%emt 0:00:00]} Raa8 {[%emt 0:02:31]} 19. Qxe6 {[%emt 0:00:00]} Rxe6 {[%emt 0:00:08]} 20. Nc4 {[%emt 0:00:00]} g6 {[%emt 0:08:30]} 21. b5 {[%emt 0:00:00]} Nb8 {[%emt 0:01:41]} 22. Red1 {[%emt 0:00:00]} Nbd7 {[%emt 0:00:20]} 23. f3 {[%emt 0:00:00]} Kf8 {[%emt 0:05:34]} 24. Nf1 {[%emt 0:00:00]} Ke7 {[%emt 0:02:06]} 25. Nfe3 {[%emt 0:00:00]} c6 {[%emt 0:00:02]} 26. bxa6 {[%emt 0:00:00]} Rxa6 {[%emt 0:01:23]} 27. a5 {[%emt 0:00:00]} Nc5 {[%emt 0:01:07]} 28. Nf5+ {[%emt 0:00:00]} Kf8 {[%emt 0:05:58]} 29. Nfd6 {[%emt 0:00:00]} Ra8 {[%emt 0:06:52]} 30. Nb6 {[%emt 0:00:00]} Rd8 {[%emt 0:00:17]} 31. Nxb7 {[%emt 0:00:00]} Rd4 {[%emt 0:11:52]} 32. Rac1 Rxd1+ 33. Rxd1 {[%emt 0:00:00]} Na6 {[%emt 0:00:00]} 34. Rd8+ {[%emt 0:00:00]} Re8 {[%emt 0:00:00]} 35. Rd6 {[%emt 0:00:00]} Re6 {[%emt 0:00:00]} 36. Rxe6 {[%emt 0:00:00]} fxe6 {[%emt 0:00:00]} 37. Nd8 {[%emt 0:00:00]} c5 {[%emt 0:00:00]} 38. Nc6 {[%emt 0:00:00]} Ne8 {[%emt 0:00:00]} 39. Nxe5 {[%emt 0:00:00]} Kg7 {[%emt 0:00:00]} 40. Kf2 {[%emt 0:00:00]} Nd6 {[%emt 0:00:41]} 41. Ke3 {[%emt 0:00:00]} Kf6 {[%emt 0:01:36]} 42. Nec4 {[%emt 0:00:00]} Nb5 {[%emt 0:01:06]} 43. Kd3 {[%emt 0:00:00]} Ke7 {[%emt 0:00:55]} 44. h4 {[%emt 0:00:00]} Nac7 {[%emt 0:01:41]} 45. Ne5 {[%emt 0:00:00]} Kd6 {[%emt 0:01:01]} 1-0

[Event "33rd Croatian Junior League 2024"]
[Site "Novalja"]
[Date "2024.04.06"]
[Round "7.3"]
[White "Car, Filip"]
[Black "Marfat, Ivan"]
[Result "1/2-1/2"]
[ECO "E04"]
[WhiteElo "2106"]
[BlackElo "1903"]
[Annotator "RC"]
[PlyCount "73"]
[EventDate "2024.03.28"]
[EventType "team-tourn"]
[EventCountry "CRO"]
[SourceTitle "playchess.com"]
[Source "ChessBase"]
[SourceQuality "1"]
[TimeControl "5400+30"]

1. d4 {[%emt 0:00:09]} d5 {[%emt 0:00:06]} 2. c4 {[%emt 0:00:08]} e6 {[%emt 0:00:03]} 3. Nf3 {[%emt 0:00:15]} Nf6 {[%emt 0:00:14]} 4. g3 {[%emt 0:00:15]} dxc4 {[%emt 0:00:44]} 5. Bg2 {[%emt 0:00:10]} Bb4+ {[%emt 0:00:06]} 6. Bd2 {[%emt 0:00:11]} c5 {[%emt 0:00:05]} 7. Bxb4 {[%emt 0:26:35]} cxb4 {[%emt 0:00:23]} 8. Qa4+ {[%emt 0:00:34]} Nc6 {[%emt 0:01:17]} 9. Ne5 {[%emt 0:00:18]} Bd7 {[%emt 0:00:08]} 10. Nxc6 {[%emt 0:01:44]} Bxc6 {[%emt 0:00:05]} 11. Bxc6+ {[%emt 0:00:10]} bxc6 {[%emt 0:00:01]} 12. Qxb4 {[%emt 0:14:48]} Qxd4 {[%emt 0:06:04]} 13. Nd2 {[%emt 0:02:30]} Ng4 {[%emt 0:22:07]} 14. e3 {[%emt 0:13:40]} Qd5 {[%emt 0:03:15]} 15. O-O {[%emt 0:02:13]} Ne5 {[%emt 0:04:45]} 16. f4 {[%emt 0:02:44]} Nd3 {[%emt 0:02:07]} 17. Qxc4 {[%emt 0:00:48]} O-O {[%emt 0:05:10]} 18. Qc3 {[%emt 0:04:32]} Rfd8 {[%emt 0:14:39]} 19. Rfd1 {[%emt 0:07:13]} Ne1 {[%emt 0:01:04]} 20. e4 {[%emt 0:02:20]} Qd3 {[%emt 0:02:50]} 21. Qxd3 {[%emt 0:01:49]} Nxd3 {[%emt 0:00:05]} 22. Nc4 {[%emt 0:00:59]} Rd4 {[%emt 0:00:37]} 23. b3 {[%emt 0:08:46]} Rad8 {[%emt 0:01:25]} 24. Kf1 {[%emt 0:00:18]} f6 {[%emt 0:08:50]} 25. e5 {[%emt 0:03:23]} fxe5 {[%emt 0:00:49]} 26. Nxe5 {[%emt 0:02:06]} Nxe5 {[%emt 0:00:19]} 27. Rxd4 {[%emt 0:00:02]} Rxd4 {[%emt 0:00:01]} 28. fxe5 {[%emt 0:00:10]} Rd5 {[%emt 0:02:26]} 29. Re1 {[%emt 0:00:27]} Kf7 {[%emt 0:00:10]} 30. Re4 {[%emt 0:01:20]} Ra5 {[%emt 0:08:38]} 31. a4 {[%emt 0:01:45]} Rd5 {[%emt 0:01:13]} 32. Ke2 {[%emt 0:00:33]} Kg6 {[%emt 0:00:31]} 33. Rg4+ {[%emt 0:00:14]} Kf7 {[%emt 0:00:10]} 34. Re4 {[%emt 0:00:04]} Kg6 {[%emt 0:00:05]} 35. Rg4+ {[%emt 0:01:24]} Kf7 {[%emt 0:00:05]} 36. Rf4+ {[%emt 0:00:14]} Kg6 {[%emt 0:00:11]} 37. Rg4+ {[%emt 0:00:27]} 1/2-1/2